[Event "*** Titled Tuesday Blitz"]
[Site "Chess.com"]
[Date "2020.11.24"]
[Round "3"]
[White "Vi_Los"]
[Black "Slovak_fighter2000"]
[Result "1/2-1/2"]
[WhiteElo "2355"]
[BlackElo "2448"]
[TimeControl "180+1"]
[EndTime "10:46:23 PST"]
[Termination "Game drawn by repetition"]

1. e4 {[%clk 0:03:00.1]} 1... g6 {[%clk 0:02:59.2]} 2. d4 {[%clk 0:02:59.6]}
2... Bg7 {[%clk 0:02:59.5]} 3. Nc3 {[%clk 0:03:00.3]} 3... a6 {[%clk 0:02:58.5]}
4. f4 {[%clk 0:02:58.6]} 4... d5 {[%clk 0:02:57.6]} 5. e5 {[%clk 0:02:54.6]}
5... h5 {[%clk 0:02:56.8]} 6. Be3 {[%clk 0:02:51]} 6... c6 {[%clk 0:02:55.4]} 7.
Nf3 {[%clk 0:02:50.6]} 7... Nh6 {[%clk 0:02:54.3]} 8. Qd2 {[%clk 0:02:48.7]}
8... Bg4 {[%clk 0:02:53.2]} 9. Be2 {[%clk 0:02:41.8]} 9... Nf5 {[%clk 0:02:53]}
10. Bf2 {[%clk 0:02:41.1]} 10... e6 {[%clk 0:02:50.9]} 11. h3 {[%clk 0:02:37.3]}
11... Bxf3 {[%clk 0:02:50.5]} 12. Bxf3 {[%clk 0:02:38.2]} 12... h4 {[%clk
0:02:45.1]} 13. Bg4 {[%clk 0:02:34.5]} 13... Nd7 {[%clk 0:02:43]} 14. O-O-O
{[%clk 0:02:32.6]} 14... Qe7 {[%clk 0:02:41.9]} 15. Kb1 {[%clk 0:02:29.7]} 15...
b5 {[%clk 0:02:39.9]} 16. Ne2 {[%clk 0:02:24.6]} 16... a5 {[%clk 0:02:35.7]} 17.
Ng1 {[%clk 0:02:20.5]} 17... Nb6 {[%clk 0:02:22.4]} 18. Nf3 {[%clk 0:02:05.6]}
18... Nc4 {[%clk 0:02:19.8]} 19. Qe1 {[%clk 0:02:04.9]} 19... a4 {[%clk
0:02:01.6]} 20. Bxf5 {[%clk 0:01:56]} 20... gxf5 {[%clk 0:02:02.5]} 21. Bxh4
{[%clk 0:01:55.9]} 21... Qb7 {[%clk 0:01:58.8]} 22. Qb4 {[%clk 0:01:44]} 22...
Bf8 {[%clk 0:01:56.5]} 23. Qe1 {[%clk 0:01:43.7]} 23... b4 {[%clk 0:01:55.8]}
24. Rd3 {[%clk 0:01:23.7]} 24... b3 {[%clk 0:01:29.4]} 25. cxb3 {[%clk
0:01:19.3]} 25... axb3 {[%clk 0:01:30.3]} 26. Rxb3 {[%clk 0:01:19.1]} 26... Qa6
{[%clk 0:01:26.7]} 27. a3 {[%clk 0:01:13.6]} 27... Qa4 {[%clk 0:01:24.9]} 28.
Qd1 {[%clk 0:01:08.7]} 28... Bxa3 {[%clk 0:01:11.5]} 29. Rb8+ {[%clk 0:01:01.9]}
29... Kd7 {[%clk 0:00:57.6]} 30. Qxa4 {[%clk 0:01:01.2]} 30... Rhxb8 {[%clk
0:00:51.8]} 31. Qxa8 {[%clk 0:01:00.2]} 31... Rxa8 {[%clk 0:00:43.7]} 32. bxa3
{[%clk 0:01:00.2]} 32... Rxa3 {[%clk 0:00:42.8]} 33. Be1 {[%clk 0:00:44.4]}
33... Rb3+ {[%clk 0:00:37.7]} 34. Kc1 {[%clk 0:00:40.5]} 34... Ne3 {[%clk
0:00:23.6]} 35. h4 {[%clk 0:00:34.3]} 35... Nxg2 {[%clk 0:00:23.9]} 36. Ng5
{[%clk 0:00:29.1]} 36... Nxf4 {[%clk 0:00:23.9]} 37. h5 {[%clk 0:00:28.6]} 37...
Rb8 {[%clk 0:00:18.7]} 38. h6 {[%clk 0:00:27.6]} 38... Ke7 {[%clk 0:00:17.8]}
39. Bd2 {[%clk 0:00:25.7]} 39... Ne2+ {[%clk 0:00:15.4]} 40. Kd1 {[%clk
0:00:22.7]} 40... Rb1+ {[%clk 0:00:14.3]} 41. Kxe2 {[%clk 0:00:21.1]} 41... Rxh1
{[%clk 0:00:15.2]} 42. Nf3 {[%clk 0:00:19.7]} 42... f6 {[%clk 0:00:10.2]} 43.
exf6+ {[%clk 0:00:18.4]} 43... Kxf6 {[%clk 0:00:11.1]} 44. Bf4 {[%clk
0:00:18.4]} 44... Kg6 {[%clk 0:00:08.8]} 45. Ne5+ {[%clk 0:00:17.8]} 45... Kh7
{[%clk 0:00:08.3]} 46. Nxc6 {[%clk 0:00:18]} 46... Rh4 {[%clk 0:00:08.5]} 47.
Ke3 {[%clk 0:00:18]} 47... Rh3+ {[%clk 0:00:08.4]} 48. Ke2 {[%clk 0:00:17.4]}
48... Rh4 {[%clk 0:00:08.3]} 49. Kf3 {[%clk 0:00:17.6]} 49... Rh3+ {[%clk
0:00:08]} 50. Bg3 {[%clk 0:00:18]} 50... Rxh6 {[%clk 0:00:05.9]} 51. Ne5 {[%clk
0:00:17.2]} 51... Rh1 {[%clk 0:00:05.4]} 52. Bf4 {[%clk 0:00:16.9]} 52... Rd1
{[%clk 0:00:05.8]} 53. Be3 {[%clk 0:00:17.2]} 53... Ra1 {[%clk 0:00:06.3]} 54.
Kf4 {[%clk 0:00:17.3]} 54... Kg7 {[%clk 0:00:06.8]} 55. Kg5 {[%clk 0:00:17.2]}
55... Ra4 {[%clk 0:00:07.3]} 56. Kf4 {[%clk 0:00:17.3]} 56... Ra1 {[%clk
0:00:07.2]} 57. Nd7 {[%clk 0:00:17.4]} 57... Rf1+ {[%clk 0:00:07.7]} 58. Kg3
{[%clk 0:00:17.5]} 58... Kf7 {[%clk 0:00:07.9]} 59. Ne5+ {[%clk 0:00:17.5]}
59... Ke7 {[%clk 0:00:07.6]} 60. Nc6+ {[%clk 0:00:17.5]} 60... Kd6 {[%clk
0:00:07.2]} 61. Ne5 {[%clk 0:00:18.3]} 61... Re1 {[%clk 0:00:07.4]} 62. Kf3
{[%clk 0:00:18.2]} 62... Rf1+ {[%clk 0:00:07.3]} 63. Ke2 {[%clk 0:00:18.2]}
63... Ra1 {[%clk 0:00:08.2]} 64. Bf4 {[%clk 0:00:18.1]} 64... Ra2+ {[%clk
0:00:08]} 65. Ke3 {[%clk 0:00:18.3]} 65... Ke7 {[%clk 0:00:08.9]} 66. Nd3 {[%clk
0:00:18.3]} 66... Ra3 {[%clk 0:00:08.6]} 67. Be5 {[%clk 0:00:19]} 67... Rb3
{[%clk 0:00:08.4]} 68. Ke2 {[%clk 0:00:19.3]} 68... Ra3 {[%clk 0:00:08.6]} 69.
Nf4 {[%clk 0:00:19.7]} 69... Ra2+ {[%clk 0:00:08.8]} 70. Ke3 {[%clk 0:00:19.6]}
70... Ra3+ {[%clk 0:00:09.3]} 71. Ke2 {[%clk 0:00:20]} 71... Ra4 {[%clk
0:00:09.8]} 72. Ke3 {[%clk 0:00:20.2]} 72... Rc4 {[%clk 0:00:10.3]} 73. Ke2
{[%clk 0:00:20.4]} 73... Rc8 {[%clk 0:00:10.8]} 74. Ke3 {[%clk 0:00:19.6]} 74...
Rg8 {[%clk 0:00:11.3]} 75. Kf3 {[%clk 0:00:19.7]} 75... Ra8 {[%clk 0:00:10.9]}
76. Ke3 {[%clk 0:00:20.1]} 76... Ra3+ {[%clk 0:00:11.3]} 77. Ke2 {[%clk
0:00:20.7]} 1/2-1/2

[Event "*** Titled Tuesday Blitz"]
[Site "Chess.com"]
[Date "2020.11.24"]
[Round "3"]
[White "DenLaz"]
[Black "mc4chess"]
[Result "0-1"]
[WhiteElo "2750"]
[BlackElo "2467"]
[TimeControl "180+1"]
[EndTime "10:46:32 PST"]
[Termination "mc4chess won on time"]

1. Nf3 {[%clk 0:03:00.9]} 1... c5 {[%clk 0:02:59.7]} 2. c4 {[%clk 0:02:56.9]}
2... g6 {[%clk 0:02:59.8]} 3. d4 {[%clk 0:02:55.5]} 3... cxd4 {[%clk 0:03:00]}
4. Nxd4 {[%clk 0:02:56.4]} 4... Bg7 {[%clk 0:03:00]} 5. e4 {[%clk 0:02:56.6]}
5... Nc6 {[%clk 0:03:00.1]} 6. Be3 {[%clk 0:02:56.4]} 6... Nf6 {[%clk
0:02:58.9]} 7. Nc3 {[%clk 0:02:56.6]} 7... d6 {[%clk 0:02:58.6]} 8. Be2 {[%clk
0:02:56.7]} 8... O-O {[%clk 0:02:59.2]} 9. O-O {[%clk 0:02:56.2]} 9... Nxd4
{[%clk 0:02:55.8]} 10. Bxd4 {[%clk 0:02:57.1]} 10... Be6 {[%clk 0:02:56.3]} 11.
Qd2 {[%clk 0:02:52.5]} 11... Nd7 {[%clk 0:02:51.1]} 12. Be3 {[%clk 0:02:42.7]}
12... a6 {[%clk 0:02:48]} 13. b3 {[%clk 0:02:29.4]} 13... f5 {[%clk 0:02:42.8]}
14. Rac1 {[%clk 0:02:18.6]} 14... Rc8 {[%clk 0:02:35.3]} 15. Rfe1 {[%clk
0:02:10.2]} 15... Nf6 {[%clk 0:02:29.3]} 16. exf5 {[%clk 0:02:08]} 16... Bxf5
{[%clk 0:02:29.2]} 17. Bf3 {[%clk 0:02:06.1]} 17... Qd7 {[%clk 0:02:27.7]} 18.
Bg5 {[%clk 0:02:01.3]} 18... b5 {[%clk 0:02:15.1]} 19. Bxf6 {[%clk 0:01:47.4]}
19... Bxf6 {[%clk 0:02:14.8]} 20. Nd5 {[%clk 0:01:47.6]} 20... Rc5 {[%clk
0:02:06.8]} 21. b4 {[%clk 0:01:31.3]} 21... Rxc4 {[%clk 0:02:02.4]} 22. Nb6
{[%clk 0:01:20]} 22... Rxc1 {[%clk 0:01:31.7]} 23. Nxd7 {[%clk 0:01:16.4]} 23...
Rxe1+ {[%clk 0:01:32.6]} 24. Qxe1 {[%clk 0:01:16.7]} 24... Bxd7 {[%clk
0:01:33.5]} 25. h3 {[%clk 0:01:07]} 25... Rc8 {[%clk 0:01:29.9]} 26. Bg4 {[%clk
0:00:53.6]} 26... Bxg4 {[%clk 0:01:23]} 27. hxg4 {[%clk 0:00:54.5]} 27... Rc2
{[%clk 0:01:12.9]} 28. Qe4 {[%clk 0:00:46.5]} 28... Rc4 {[%clk 0:00:50.4]} 29.
Qa8+ {[%clk 0:00:37.2]} 29... Kf7 {[%clk 0:00:50]} 30. a3 {[%clk 0:00:37.4]}
30... Rc1+ {[%clk 0:00:33.3]} 31. Kh2 {[%clk 0:00:36.6]} 31... Rc2 {[%clk
0:00:33.4]} 32. f3 {[%clk 0:00:29.9]} 32... Be5+ {[%clk 0:00:31.4]} 33. Kh3
{[%clk 0:00:28.9]} 33... Rc1 {[%clk 0:00:31.9]} 34. g3 {[%clk 0:00:27.3]} 34...
Rc3 {[%clk 0:00:28]} 35. Qd5+ {[%clk 0:00:13.9]} 35... Kg7 {[%clk 0:00:22.6]}
36. g5 {[%clk 0:00:09]} 36... Rxa3 {[%clk 0:00:18.9]} 37. Kg4 {[%clk 0:00:09.1]}
37... Rc3 {[%clk 0:00:16.7]} 38. f4 {[%clk 0:00:08.9]} 38... Rc4 {[%clk
0:00:16.9]} 39. Qe6 {[%clk 0:00:06.2]} 39... Kf8 {[%clk 0:00:14.3]} 40. Kh3
{[%clk 0:00:06]} 40... Bc3 {[%clk 0:00:13.9]} 41. Qe2 {[%clk 0:00:02.1]} 41...
Bxb4 {[%clk 0:00:13]} 42. Qf3 {[%clk 0:00:02.3]} 42... Bc3 {[%clk 0:00:11.9]}
43. Qa8+ {[%clk 0:00:02.3]} 43... Kg7 {[%clk 0:00:11.9]} 44. Qxa6 {[%clk
0:00:02.9]} 44... Rc5 {[%clk 0:00:11.5]} 45. Qb7 {[%clk 0:00:02.4]} 45... Kf7
{[%clk 0:00:11.6]} 46. Kg4 {[%clk 0:00:02.3]} 46... b4 {[%clk 0:00:11.9]} 47.
Kf3 {[%clk 0:00:02.2]} 47... Ra5 {[%clk 0:00:11.4]} 48. Ke4 {[%clk 0:00:01]}
48... Ra1 {[%clk 0:00:10.5]} 49. g4 {[%clk 0:00:01.6]} 49... Re1+ {[%clk
0:00:10.8]} 50. Kd3 {[%clk 0:00:02.1]} 50... Rg1 {[%clk 0:00:09.9]} 51. Qd5+
{[%clk 0:00:01.7]} 51... Kg7 {[%clk 0:00:10.5]} 52. Qe6 {[%clk 0:00:01.7]} 52...
Re1 {[%clk 0:00:10.9]} 53. Qd7 {[%clk 0:00:01.5]} 53... Kf7 {[%clk 0:00:11.3]}
54. Kc4 {[%clk 0:00:02]} 54... Re4+ {[%clk 0:00:10.9]} 55. Kb3 {[%clk
0:00:02.3]} 55... Rxf4 {[%clk 0:00:11.8]} 56. Qc8 {[%clk 0:00:02.3]} 56... Kg7
{[%clk 0:00:10.8]} 57. Qd7 {[%clk 0:00:02.5]} 57... Re4 {[%clk 0:00:10.9]} 58.
Qc6 {[%clk 0:00:02.3]} 58... Re5 {[%clk 0:00:11.8]} 59. Qd7 {[%clk 0:00:02.5]}
59... Kf7 {[%clk 0:00:12]} 60. Qc7 {[%clk 0:00:02.5]} 60... Rxg5 {[%clk
0:00:12.4]} 61. Qc4+ {[%clk 0:00:02.8]} 61... Kg7 {[%clk 0:00:11.7]} 62. Qe4
{[%clk 0:00:03.3]} 62... Re5 {[%clk 0:00:12.1]} 63. Qf3 {[%clk 0:00:03.6]} 63...
h5 {[%clk 0:00:11.9]} 64. gxh5 {[%clk 0:00:03.7]} 64... gxh5 {[%clk 0:00:12.8]}
65. Qg3+ {[%clk 0:00:03.9]} 65... Kh6 {[%clk 0:00:13]} 66. Qf4+ {[%clk
0:00:03.7]} 66... Kg6 {[%clk 0:00:12.5]} 67. Qg3+ {[%clk 0:00:04]} 67... Rg5
{[%clk 0:00:12.3]} 68. Qd3+ {[%clk 0:00:04.4]} 68... Kf7 {[%clk 0:00:11.3]} 69.
Qf3+ {[%clk 0:00:04.9]} 69... Bf6 {[%clk 0:00:10.6]} 70. Kxb4 {[%clk 0:00:03.8]}
70... h4 {[%clk 0:00:11.2]} 71. Qd3 {[%clk 0:00:01.4]} 71... Rg4+ {[%clk
0:00:10.1]} 72. Kb5 {[%clk 0:00:01.5]} 72... Kg7 {[%clk 0:00:07.5]} 73. Qh3
{[%clk 0:00:01]} 73... Rg5+ {[%clk 0:00:06.4]} 0-1

[Event "*** Titled Tuesday Blitz"]
[Site "Chess.com"]
[Date "2020.11.24"]
[Round "3"]
[White "TST2014"]
[Black "Sinquefield"]
[Result "0-1"]
[WhiteElo "2507"]
[BlackElo "2378"]
[TimeControl "180+1"]
[EndTime "10:46:36 PST"]
[Termination "Sinquefield won on time"]

1. d4 {[%clk 0:03:00.9]} 1... Nf6 {[%clk 0:02:57.4]} 2. c4 {[%clk 0:03:00.2]}
2... e6 {[%clk 0:02:58.1]} 3. Nf3 {[%clk 0:02:59.8]} 3... Bb4+ {[%clk
0:02:57.1]} 4. Bd2 {[%clk 0:02:59.3]} 4... Qe7 {[%clk 0:02:56.9]} 5. g3 {[%clk
0:02:56.2]} 5... O-O {[%clk 0:02:55.8]} 6. Bg2 {[%clk 0:02:56]} 6... d5 {[%clk
0:02:56.3]} 7. O-O {[%clk 0:02:49.9]} 7... Bxd2 {[%clk 0:02:50]} 8. Nbxd2 {[%clk
0:02:47.5]} 8... c5 {[%clk 0:02:50]} 9. cxd5 {[%clk 0:02:42.3]} 9... Nxd5 {[%clk
0:02:47.5]} 10. Rc1 {[%clk 0:02:37.2]} 10... cxd4 {[%clk 0:02:40.5]} 11. Nxd4
{[%clk 0:02:37.6]} 11... Nb6 {[%clk 0:02:40.7]} 12. Nc4 {[%clk 0:02:26.2]} 12...
Nxc4 {[%clk 0:02:36.7]} 13. Rxc4 {[%clk 0:02:27.1]} 13... Nd7 {[%clk 0:02:33.2]}
14. Qc2 {[%clk 0:02:24.8]} 14... Nb6 {[%clk 0:02:32.9]} 15. Rc7 {[%clk
0:02:23.5]} 15... Qf6 {[%clk 0:02:33.4]} 16. e3 {[%clk 0:02:20]} 16... e5 {[%clk
0:02:32.7]} 17. Nb3 {[%clk 0:02:12.7]} 17... Bf5 {[%clk 0:02:32.4]} 18. Be4
{[%clk 0:02:05.6]} 18... Bh3 {[%clk 0:02:22.7]} 19. Rc1 {[%clk 0:02:03.1]} 19...
Rac8 {[%clk 0:02:22.2]} 20. Bxb7 {[%clk 0:02:01.1]} 20... Rxc7 {[%clk
0:02:21.9]} 21. Qxc7 {[%clk 0:02:02]} 21... e4 {[%clk 0:02:20.5]} 22. Bxe4
{[%clk 0:01:54.1]} 22... Qxb2 {[%clk 0:02:20.5]} 23. Qc2 {[%clk 0:01:51.5]}
23... Qxc2 {[%clk 0:02:08.1]} 24. Rxc2 {[%clk 0:01:51.4]} 24... Rd8 {[%clk
0:02:07.4]} 25. Rd2 {[%clk 0:01:49.1]} 25... Rc8 {[%clk 0:02:07.3]} 26. f4
{[%clk 0:01:42.7]} 26... g6 {[%clk 0:02:05.8]} 27. Kf2 {[%clk 0:01:42.1]} 27...
Re8 {[%clk 0:02:01.6]} 28. Bc6 {[%clk 0:01:34.3]} 28... Rc8 {[%clk 0:02:00.9]}
29. Nd4 {[%clk 0:01:29.2]} 29... Nc4 {[%clk 0:01:53.7]} 30. Rc2 {[%clk
0:01:26.8]} 30... Nd6 {[%clk 0:01:53.5]} 31. e4 {[%clk 0:01:21]} 31... Rb8
{[%clk 0:01:52.4]} 32. e5 {[%clk 0:01:20.4]} 32... Nf5 {[%clk 0:01:52.4]} 33.
Nf3 {[%clk 0:01:13.8]} 33... Rb1 {[%clk 0:01:50.6]} 34. Bd5 {[%clk 0:01:06.6]}
34... Rf1+ {[%clk 0:01:49.2]} 35. Ke2 {[%clk 0:01:06.5]} 35... Rb1 {[%clk
0:01:01.2]} 36. Rc8+ {[%clk 0:00:52.9]} 36... Kg7 {[%clk 0:01:01.2]} 37. Rc7
{[%clk 0:00:53.1]} 37... Rb2+ {[%clk 0:01:00.9]} 38. Kd3 {[%clk 0:00:50.3]}
38... Bg2 {[%clk 0:00:44.9]} 39. Rxf7+ {[%clk 0:00:48.2]} 39... Kh8 {[%clk
0:00:42.3]} 40. Rf8+ {[%clk 0:00:30.8]} 40... Kg7 {[%clk 0:00:42.5]} 41. Rf7+
{[%clk 0:00:31.2]} 41... Kh8 {[%clk 0:00:43]} 42. Kc3 {[%clk 0:00:20.4]} 42...
Rf2 {[%clk 0:00:40.5]} 43. Rf8+ {[%clk 0:00:17.5]} 43... Kg7 {[%clk 0:00:40.4]}
44. Rf7+ {[%clk 0:00:16.1]} 44... Kh8 {[%clk 0:00:38]} 45. e6 {[%clk 0:00:11.6]}
45... Bxf3 {[%clk 0:00:36.3]} 46. Rf8+ {[%clk 0:00:10.4]} 46... Kg7 {[%clk
0:00:36.1]} 47. Rf7+ {[%clk 0:00:11]} 47... Kh6 {[%clk 0:00:35.7]} 48. Bxf3
{[%clk 0:00:10.5]} 48... Rxf3+ {[%clk 0:00:35.4]} 49. Kb4 {[%clk 0:00:10.6]}
49... Re3 {[%clk 0:00:35.7]} 50. Rxa7 {[%clk 0:00:09.6]} 50... Rxe6 {[%clk
0:00:35.8]} 51. a4 {[%clk 0:00:09.6]} 51... Re2 {[%clk 0:00:36.3]} 52. a5 {[%clk
0:00:08.9]} 52... Rxh2 {[%clk 0:00:36.7]} 53. a6 {[%clk 0:00:09.4]} 53... Nxg3
{[%clk 0:00:34.2]} 54. Rd7 {[%clk 0:00:09.1]} 54... Ra2 {[%clk 0:00:32.3]} 55.
a7 {[%clk 0:00:09.4]} 55... Ne2 {[%clk 0:00:31.7]} 56. Kb5 {[%clk 0:00:09.8]}
56... Nxf4 {[%clk 0:00:31.9]} 57. Kb6 {[%clk 0:00:10]} 57... Rb2+ {[%clk
0:00:29.3]} 58. Kc7 {[%clk 0:00:09]} 58... Ra2 {[%clk 0:00:13.2]} 59. Kb8 {[%clk
0:00:08.4]} 59... Ne6 {[%clk 0:00:12.7]} 60. a8=Q {[%clk 0:00:06.9]} 60... Rxa8+
{[%clk 0:00:13.1]} 61. Kxa8 {[%clk 0:00:07.7]} 61... g5 {[%clk 0:00:14]} 62. Rd6
{[%clk 0:00:07.4]} 62... Kh5 {[%clk 0:00:14.2]} 63. Rxe6 {[%clk 0:00:08]} 63...
g4 {[%clk 0:00:14.8]} 64. Re5+ {[%clk 0:00:06.6]} 64... Kh4 {[%clk 0:00:15]} 65.
Re1 {[%clk 0:00:06.7]} 65... h5 {[%clk 0:00:12]} 66. Kb7 {[%clk 0:00:06.9]}
66... g3 {[%clk 0:00:12]} 67. Kc6 {[%clk 0:00:07.4]} 67... g2 {[%clk 0:00:11.9]}
68. Kd5 {[%clk 0:00:07.8]} 68... Kg3 {[%clk 0:00:12.4]} 69. Ke4 {[%clk
0:00:08.1]} 69... h4 {[%clk 0:00:11.4]} 70. Re3+ {[%clk 0:00:06.2]} 70... Kg4
{[%clk 0:00:10.7]} 71. Re1 {[%clk 0:00:04.1]} 71... h3 {[%clk 0:00:09.4]} 72.
Rg1 {[%clk 0:00:03.3]} 72... Kg3 {[%clk 0:00:09.2]} 73. Ke3 {[%clk 0:00:03.7]}
73... h2 {[%clk 0:00:09.5]} 74. Ra1 {[%clk 0:00:03.5]} 74... g1=Q+ {[%clk
0:00:09.6]} 0-1

[Event "*** Titled Tuesday Blitz"]
[Site "Chess.com"]
[Date "2020.11.24"]
[Round "3"]
[White "AIROPITO7"]
[Black "Marina_Chess_Rus"]
[Result "0-1"]
[WhiteElo "2574"]
[BlackElo "2296"]
[TimeControl "180+1"]
[EndTime "10:46:40 PST"]
[Termination "Marina_Chess_Rus won by resignation"]

1. Nf3 {[%clk 0:02:59.3]} 1... d5 {[%clk 0:02:59.6]} 2. g3 {[%clk 0:02:43.3]}
2... Nf6 {[%clk 0:02:58.9]} 3. Bg2 {[%clk 0:02:41.5]} 3... c6 {[%clk 0:02:59.2]}
4. O-O {[%clk 0:02:32.3]} 4... Bg4 {[%clk 0:02:56.2]} 5. b3 {[%clk 0:02:28.4]}
5... e6 {[%clk 0:02:55.8]} 6. Bb2 {[%clk 0:02:28.3]} 6... Nbd7 {[%clk
0:02:54.4]} 7. d3 {[%clk 0:02:27.3]} 7... Be7 {[%clk 0:02:52.2]} 8. Nbd2 {[%clk
0:02:25.9]} 8... O-O {[%clk 0:02:52]} 9. c4 {[%clk 0:02:25.9]} 9... Rc8 {[%clk
0:02:48]} 10. a3 {[%clk 0:02:24.8]} 10... a5 {[%clk 0:02:45.5]} 11. Qc2 {[%clk
0:02:22.9]} 11... Qc7 {[%clk 0:02:41]} 12. Bc3 {[%clk 0:02:19.5]} 12... e5
{[%clk 0:02:32.2]} 13. b4 {[%clk 0:02:08.3]} 13... d4 {[%clk 0:02:29.5]} 14. Bb2
{[%clk 0:02:04.4]} 14... axb4 {[%clk 0:02:29.7]} 15. axb4 {[%clk 0:02:05.3]}
15... Bxb4 {[%clk 0:02:29.7]} 16. Rfb1 {[%clk 0:02:04.6]} 16... Be7 {[%clk
0:02:19.1]} 17. Ba3 {[%clk 0:02:01.5]} 17... Bxa3 {[%clk 0:02:15.2]} 18. Rxa3
{[%clk 0:02:02.4]} 18... Ra8 {[%clk 0:02:15.2]} 19. Rab3 {[%clk 0:02:01.8]}
19... b6 {[%clk 0:02:06.9]} 20. h3 {[%clk 0:01:55.1]} 20... Bf5 {[%clk
0:02:03.3]} 21. Nh4 {[%clk 0:01:47.7]} 21... Be6 {[%clk 0:02:02.2]} 22. R3b2
{[%clk 0:01:44]} 22... Ra6 {[%clk 0:01:55.2]} 23. Ndf3 {[%clk 0:01:35.3]} 23...
h6 {[%clk 0:01:52]} 24. g4 {[%clk 0:01:33.4]} 24... Nh7 {[%clk 0:01:30.9]} 25.
Qd2 {[%clk 0:01:28.3]} 25... f6 {[%clk 0:01:20.1]} 26. Ng6 {[%clk 0:01:18.9]}
26... Rfa8 {[%clk 0:01:13.2]} 27. Nfh4 {[%clk 0:01:16.8]} 27... Kf7 {[%clk
0:01:06.3]} 28. f4 {[%clk 0:01:06.9]} 28... Ra1 {[%clk 0:01:01.3]} 29. f5 {[%clk
0:01:05.2]} 29... Ng5 {[%clk 0:00:52.3]} 30. fxe6+ {[%clk 0:01:03.1]} 30... Nxe6
{[%clk 0:00:52.3]} 31. Qb4 {[%clk 0:00:46]} 31... Nec5 {[%clk 0:00:46.1]} 32.
Be4 {[%clk 0:00:41.2]} 32... Rxb1+ {[%clk 0:00:44.5]} 33. Rxb1 {[%clk
0:00:40.7]} 33... Ra2 {[%clk 0:00:42.4]} 34. Bf5 {[%clk 0:00:26]} 34... Ra4
{[%clk 0:00:29]} 35. Qb2 {[%clk 0:00:20.1]} 35... Ra6 {[%clk 0:00:29.1]} 36. Rf1
{[%clk 0:00:16]} 36... Qd6 {[%clk 0:00:26.2]} 37. Bxd7 {[%clk 0:00:14.9]} 37...
Nxd7 {[%clk 0:00:24.1]} 38. Qb1 {[%clk 0:00:09.4]} 38... Ra3 {[%clk 0:00:22.2]}
39. Nf5 {[%clk 0:00:09.3]} 39... Qc7 {[%clk 0:00:19.4]} 40. Ngh4 {[%clk
0:00:09.7]} 40... Nf8 {[%clk 0:00:18.2]} 41. Nf3 {[%clk 0:00:09]} 41... Ne6
{[%clk 0:00:17.4]} 42. Ng3 {[%clk 0:00:08]} 42... c5 {[%clk 0:00:16.1]} 43. Qc1
{[%clk 0:00:08.1]} 43... Nf4 {[%clk 0:00:16.1]} 44. Qxa3 {[%clk 0:00:07.5]}
44... Nxh3+ {[%clk 0:00:15]} 45. Kh2 {[%clk 0:00:06.9]} 45... Nf4 {[%clk
0:00:14.6]} 46. Ne4 {[%clk 0:00:06.5]} 46... Nxe2 {[%clk 0:00:13.8]} 47. Qa8
{[%clk 0:00:06.3]} 47... Nf4 {[%clk 0:00:13.5]} 48. Qb7 {[%clk 0:00:06.2]} 48...
Qxb7 {[%clk 0:00:12.6]} 49. Nd6+ {[%clk 0:00:06.6]} 49... Ke6 {[%clk 0:00:13]}
50. Nxb7 {[%clk 0:00:07.5]} 50... Nxd3 {[%clk 0:00:13.4]} 51. Nh4 {[%clk
0:00:06]} 51... e4 {[%clk 0:00:13.5]} 52. Nf5 {[%clk 0:00:06.1]} 52... e3 {[%clk
0:00:12.9]} 53. Ng3 {[%clk 0:00:05.4]} 53... Nb2 {[%clk 0:00:10.7]} 54. Re1
{[%clk 0:00:05]} 54... Nxc4 {[%clk 0:00:10.6]} 55. Kg2 {[%clk 0:00:03.2]} 55...
d3 {[%clk 0:00:08.4]} 56. Kf3 {[%clk 0:00:03]} 56... d2 {[%clk 0:00:08.7]} 57.
Rd1 {[%clk 0:00:03.1]} 57... Nb2 {[%clk 0:00:09]} 58. Ke2 {[%clk 0:00:02.5]}
58... Nxd1 {[%clk 0:00:08.2]} 59. Kxd1 {[%clk 0:00:03.4]} 59... Ke5 {[%clk
0:00:08.7]} 60. Ke2 {[%clk 0:00:03.6]} 60... Kf4 {[%clk 0:00:08.8]} 61. Nh5+
{[%clk 0:00:03.6]} 61... Kxg4 {[%clk 0:00:08.6]} 62. Nxg7 {[%clk 0:00:04.3]}
62... h5 {[%clk 0:00:08.6]} 63. Nd6 {[%clk 0:00:04.7]} 63... h4 {[%clk
0:00:08.6]} 64. Ne4 {[%clk 0:00:04.8]} 64... h3 {[%clk 0:00:08.8]} 65. Nxf6+
{[%clk 0:00:05.1]} 65... Kg5 {[%clk 0:00:08.9]} 66. Ne4+ {[%clk 0:00:05]} 66...
Kf4 {[%clk 0:00:07.5]} 67. Nf6 {[%clk 0:00:02.1]} 67... h2 {[%clk 0:00:06.7]}
68. Nfh5+ {[%clk 0:00:02.7]} 68... Kg4 {[%clk 0:00:06.2]} 69. Nf6+ {[%clk
0:00:02.9]} 69... Kh3 {[%clk 0:00:05.1]} 70. Ne6 {[%clk 0:00:02.5]} 70... h1=Q
{[%clk 0:00:04.3]} 71. Nf4+ {[%clk 0:00:03.4]} 71... Kh4 {[%clk 0:00:04.1]} 72.
N6d5 {[%clk 0:00:04.3]} 72... d1=Q+ {[%clk 0:00:03]} 73. Kxe3 {[%clk 0:00:05.2]}
73... Qhe1+ {[%clk 0:00:02.7]} 0-1